bitfinex/quotes_BTCUSD_20230831
["timestamp","ask_amount","ask_price","bid_price","bid_amount"]
[1693466414443,0.188,27278.0,27277.0,3.20625]
[1693466414621,0.188,27278.0,27277.0,3.30625]
[1693466415227,0.27598858,27278.0,27277.0,3.20625]
[1693466415403,0.27598858,27278.0,27277.0,3.30625]
[1693466416954,0.27598858,27278.0,27277.0,3.24625]
[1693466417356,0.27598858,27278.0,27277.0,3.22625]
[1693466418541,0.27598858,27278.0,27277.0,2.493032]
[1693466419927,0.27598858,27278.0,27277.0,3.22044311]
[1693466421240,0.40797517,27278.0,27277.0,3.22044311]
[1693466423500,0.31998659,27278.0,27277.0,3.22044311]
[1693466428329,0.49602077,27278.0,27277.0,3.22044311]
[1693466430960,0.4960343,27278.0,27277.0,3.22044311]
[1693466431162,0.36403418,27278.0,27277.0,3.22044311]
[1693466432414,0.62500905,27278.0,27277.0,3.22044311]
[1693466439634,0.62500905,27278.0,27277.0,3.20044311]
[1693466447242,0.62500905,27278.0,27277.0,2.39162511]
[1693466448220,0.62500905,27278.0,27277.0,3.12484311]
[1693466450054,0.62500905,27278.0,27277.0,2.39162511]
[1693466452523,0.62500905,27278.0,27277.0,2.37162511]
[1693466453917,0.62500905,27278.0,27277.0,3.10484311]
[1693466454336,0.62500905,27278.0,27277.0,2.37162511]
[1693466458490,0.62500905,27278.0,27277.0,3.10484311]
[1693466461234,0.42063305,27278.0,27277.0,3.10484311]
[1693466461438,0.59672945,27278.0,27277.0,3.10484311]
[1693466467322,0.59672945,27278.0,27277.0,3.18044311]
[1693466468368,0.81684995,27278.0,27277.0,3.18044311]
[1693466472250,0.81684995,27278.0,27277.0,3.54652222]
[1693466472251,0.3640964,27278.0,27277.0,3.54652222]
[1693466472453,0.3640964,27278.0,27277.0,3.84652222]
[1693466472652,0.49618536,27278.0,27277.0,3.84652222]
[1693466473063,0.31608896,27278.0,27277.0,3.83252222]
[1693466473471,0.40414398,27278.0,27277.0,3.83252222]
[1693466473857,0.40014398,27278.0,27277.0,3.81552222]
[1693466474290,0.40314398,27278.0,27277.0,3.85252222]
[1693466475275,0.40614398,27278.0,27277.0,3.88952222]
[1693466477741,0.27405502,27278.0,27277.0,3.88952222]
[1693466479395,0.186,27278.0,27277.0,3.88952222]
[1693466481125,0.186,27278.0,27277.0,3.91953416]
[1693466481329,0.186,27278.0,27277.0,4.61953416]
[1693466482018,0.08805502,27280.0,27279.0,0.06]
[1693466482260,0.1760964,27282.0,27279.0,0.06]
[1693466482261,0.08805502,27282.0,27280.0,0.06]
[1693466482463,0.08805502,27282.0,27281.0,1.83229911]
[1693466482618,0.08805502,27283.0,27281.0,3.59851911]
[1693466482821,0.08805502,27283.0,27281.0,4.03162911]
[1693466483018,0.30818536,27284.0,27281.0,4.03162911]
[1693466483019,0.08805502,27284.0,27281.0,4.03162911]
[1693466484374,0.08805502,27284.0,27283.0,3.007828]
[1693466485182,0.09205502,27284.0,27283.0,3.007828]
[1693466485327,0.09005502,27284.0,27283.0,3.007828]
[1693466485529,0.08805502,27284.0,27283.0,3.007828]
[1693466485733,0.09205502,27284.0,27283.0,3.081828]
[1693466486581,0.004,27284.0,27283.0,3.081828]
[1693466535350,0.004,27284.0,27283.0,2.348771]
[1693466538479,0.09181267,27284.0,27283.0,2.348771]
[1693466539712,0.09200966,27284.0,27283.0,2.348771]
[1693466548228,0.22402416,27284.0,27283.0,2.348771]
[1693466550247,0.09200966,27284.0,27283.0,2.348771]
[1693466567268,0.004,27284.0,27283.0,3.78790711]
[1693466567434,0.004,27284.0,27283.0,3.82459337]
[1693466570480,0.00386944,27284.0,27283.0,3.82459337]
[1693466575965,0.00386944,27284.0,27283.0,3.78790711]
[1693466579649,0.00386944,27284.0,27283.0,3.817616]
[1693466611136,0.00386944,27284.0,27283.0,3.797616]
[1693466611344,0.00386944,27284.0,27283.0,3.817616]
[1693466611988,0.00386944,27284.0,27283.0,4.550673]
[1693466612187,0.00386944,27284.0,27283.0,5.62720494]
[1693466612890,0.00186944,27284.0,27283.0,5.59020494]
[1693466613050,0.08800966,27286.0,27284.0,0.02]
[1693466613252,0.22002416,27287.0,27285.0,3.37369111]
[1693466613453,0.08800966,27287.0,27286.0,0.0756]
[1693466613649,0.08800966,27287.0,27286.0,3.37358311]
[1693466614310,0.22002416,27287.0,27286.0,3.37358311]
[1693466614507,0.08800966,27287.0,27286.0,3.37358311]
[1693466614901,0.08800966,27287.0,27286.0,3.52027511]
[1693466615556,0.08800966,27287.0,27286.0,3.56427511]
[1693466617547,0.08800966,27287.0,27286.0,0.923668]
[1693466617548,0.43577933,27287.0,27286.0,0.923668]
[1693466617754,0.61179866,27287.0,27286.0,0.190692]
[1693466618968,0.47978416,27287.0,27286.0,0.190692]
[1693466619999,0.47978416,27287.0,27286.0,0.923668]
[1693466622142,0.47978416,27287.0,27286.0,1.656644]
[1693466628208,0.3080445,27287.0,27286.0,3.56427511]
[1693466628428,0.13202517,27287.0,27286.0,3.56427511]
[1693466635795,0.13202517,27287.0,27286.0,1.656644]
[1693466636002,0.60411491,27287.0,27286.0,0.190692]
[1693466636207,0.47208974,27287.0,27286.0,0.190692]
[1693466639028,0.47208974,27287.0,27286.0,0.923668]
[1693466639261,0.55683283,27287.0,27286.0,0.923668]
[1693466644294,0.55683283,27287.0,27286.0,1.656644]
[1693466645553,0.47208974,27287.0,27286.0,1.656644]
[1693466645762,0.55689105,27287.0,27286.0,1.656644]
[1693466646441,0.47208974,27287.0,27286.0,1.656644]
[1693466648486,0.55677629,27287.0,27286.0,1.656644]
[1693466650367,0.55677629,27287.0,27286.0,0.923668]
[1693466650573,0.77680046,27287.0,27286.0,0.923668]
[1693466650765,0.77680046,27287.0,27286.0,0.190692]
[1693466650766,0.60078113,27287.0,27286.0,0.190692]
[1693466651171,1.55058455,27287.0,27286.0,0.190692]
[1693466651571,1.62618455,27287.0,27286.0,0.190692]
[1693466652003,1.88099928,27287.0,27286.0,0.190692]
[1693466652990,2.10098172,27287.0,27286.0,0.190692]
[1693466655328,1.36803272,27287.0,27286.0,0.190692]
[1693466658433,0.63508372,27287.0,27286.0,0.190692]
[1693466662184,0.55948372,27287.0,27286.0,0.923668]
[1693466662387,0.30466899,27287.0,27286.0,1.656644]
[1693466665974,0.26059702,27287.0,27286.0,1.656644]
[1693466666358,0.26059702,27287.0,27286.0,2.38962]
[1693466670449,0.17591047,27287.0,27286.0,1.656644]
[1693466672504,0.30783735,27287.0,27286.0,1.656644]
[1693466676601,0.17591047,27287.0,27286.0,1.656644]
[1693466677385,0.17591047,27287.0,27286.0,2.38962]
[1693466677535,0.17591047,27287.0,27286.0,1.656644]
[1693466677748,0.17591047,27287.0,27286.0,2.38962]
[1693466679801,0.17591047,27287.0,27286.0,1.656644]
[1693466681568,0.41963607,27287.0,27286.0,1.656644]
[1693466681812,0.49587563,27287.0,27286.0,1.656644]
[1693466684095,0.49587563,27287.0,27286.0,0.923668]
[1693466684340,0.49587563,27287.0,27286.0,0.190692]
[1693466684880,0.49587563,27287.0,27286.0,0.923668]
[1693466685815,0.49587563,27287.0,27286.0,0.190692]
[1693466686606,0.49587563,27287.0,27286.0,0.923668]
[1693466688300,0.49587563,27287.0,27286.0,0.190692]
[1693466690409,0.25215003,27287.0,27286.0,0.190692]
[1693466690612,3.84771253,27287.0,27286.0,0.044]
[1693466692288,3.84771253,27287.0,27286.0,0.022]
[1693466692498,3.84771253,27287.0,27283.0,0.146734]
[1693466692703,0.29556504,27284.0,27281.0,0.00098483]
[1693466692912,0.08797735,27282.0,27281.0,0.30098483]
[1693466693120,0.08797735,27282.0,27281.0,0.44771883]
[1693466693320,0.08797735,27282.0,27281.0,1.179842]
[1693466694358,0.08797735,27282.0,27281.0,1.201842]
[1693466695194,0.08797735,27282.0,27281.0,0.468734]
[1693466695575,0.08797735,27282.0,27281.0,0.483734]
[1693466695778,0.21994338,27283.0,27281.0,0.520734]
[1693466696571,0.21994338,27283.0,27281.0,0.483734]
[1693466696772,0.21994338,27283.0,27281.0,0.446734]
[1693466696977,0.21994338,27283.0,27281.0,0.481734]
[1693466697225,0.21994338,27283.0,27281.0,0.516734]
[1693466698608,0.21994338,27283.0,27281.0,1.249843]
[1693466698885,0.21994338,27283.0,27281.0,1.982953]
[1693466701188,0.08797735,27283.0,27281.0,2.716063]
[1693466703552,0.08797735,27283.0,27281.0,3.449173]
[1693466708279,0.21994338,27284.0,27281.0,3.449173]
[1693466708482,0.08797735,27284.0,27281.0,3.449173]
[1693466708983,0.08797735,27284.0,27281.0,3.414173]
[1693466709190,0.08797735,27284.0,27281.0,3.379173]
[1693466709389,0.08797735,27284.0,27281.0,3.422173]
[1693466716587,0.08797735,27284.0,27282.0,0.0756]
[1693466716782,0.08797735,27284.0,27283.0,2.199171]
[1693466717190,0.08797735,27284.0,27283.0,2.932228]
[1693466718682,0.08797735,27284.0,27283.0,2.953228]
[1693466719113,0.08797735,27284.0,27283.0,2.975228]
[1693466723007,0.13196603,27285.0,27283.0,2.975228]
[1693466723008,0.21994338,27285.0,27283.0,3.275228]
[1693466723208,0.08797735,27285.0,27283.0,3.275228]
[1693466723881,0.08797735,27285.0,27283.0,3.232228]
[1693466724323,0.08797735,27285.0,27283.0,3.241228]
[1693466725352,0.08797735,27285.0,27283.0,3.250228]
[1693466737850,0.08797735,27285.0,27284.0,0.74167911]
[1693466738058,0.21994338,27286.0,27284.0,3.67379911]
[1693466738479,0.21994338,27286.0,27284.0,3.69379911]
[1693466738688,0.08797735,27286.0,27284.0,3.69379911]
[1693466739524,0.08797735,27286.0,27284.0,3.70979911]
[1693466739879,0.08797735,27286.0,27284.0,3.70179911]
[1693466740319,0.08797735,27286.0,27284.0,3.70979911]
[1693466742755,0.08797735,27286.0,27285.0,0.04]
[1693466742980,0.08797735,27286.0,27285.0,3.33809111]
[1693466743141,0.08797735,27286.0,27285.0,3.63809111]
[1693466743898,0.08797735,27286.0,27285.0,3.64609111]
[1693466745264,0.08797735,27286.0,27285.0,3.65409111]
[1693466746283,0.08797735,27286.0,27285.0,3.63409111]
[1693466746509,0.08797735,27286.0,27285.0,3.65409111]
[1693466750364,0.087935,27286.0,27285.0,3.65409111]
[1693466754125,0.087935,27286.0,27285.0,3.64609111]
[1693466754747,0.087935,27286.0,27285.0,3.63809111]
[1693466754943,0.087935,27286.0,27285.0,3.65909111]
[1693466755562,0.087935,27286.0,27285.0,3.68009111]
[1693466757228,0.087935,27286.0,27285.0,3.66009111]
[1693466761286,0.50079284,27286.0,27285.0,0.342]
[1693466761511,0.53242534,27286.0,27285.0,0.042]
[1693466761735,0.87536111,27286.0,27285.0,0.042]
[1693466762769,0.69949111,27286.0,27285.0,0.042]
[1693466762940,0.87544191,27286.0,27285.0,0.042]
[1693466764643,0.87545022,27286.0,27285.0,0.042]
[1693466764980,2.03072937,27286.0,27285.0,0.042]
[1693466765181,2.16471306,27286.0,27285.0,0.042]
[1693466765633,2.89768906,27286.0,27285.0,0.042]
[1693466766249,2.89768906,27286.0,27285.0,0.021]
[1693466766453,2.89768906,27286.0,27281.0,0.146734]
[1693466766454,2.89868906,27286.0,27281.0,0.146734]
[1693466766710,0.08797557,27282.0,27281.0,0.146734]
[1693466767731,0.08797557,27282.0,27281.0,0.183734]
[1693466768685,0.08797557,27282.0,27281.0,0.220734]
[1693466769245,0.37198715,27282.0,27281.0,0.220734]
[1693466770863,2.13369408,27282.0,27281.0,0.220734]
[1693466771085,2.86303258,27282.0,27281.0,0.074]
[1693466771832,2.73481472,27282.0,27281.0,0.037]
[1693466772245,2.73881472,27282.0,27281.0,0.037]
[1693466772388,2.86837415,27282.0,27281.0,0.037]
[1693466772594,2.86665051,27282.0,27279.0,0.14773574]
[1693466772774,0.0756,27280.0,27279.0,0.14773574]
[1693466773200,1.02843813,27281.0,27279.0,0.146754]
[1693466773406,0.89660234,27281.0,27279.0,0.146754]
[1693466773925,0.89660234,27281.0,27279.0,0.155754]
[1693466774127,0.89660234,27281.0,27279.0,0.146754]
[1693466774529,0.89960234,27281.0,27279.0,0.146754]
[1693466774734,0.26266889,27280.0,27279.0,0.146754]
[1693466776130,0.26266889,27280.0,27279.0,0.155754]
[1693466777348,0.26266889,27280.0,27279.0,0.164754]
[1693466778377,0.26266889,27280.0,27279.0,0.155754]
[1693466778774,0.26566889,27280.0,27279.0,0.155754]
[1693466778978,0.26566889,27280.0,27279.0,0.146754]
[1693466779596,0.26266889,27280.0,27279.0,0.146754]
[1693466779795,0.26566889,27280.0,27279.0,0.146754]
[1693466780000,0.003,27280.0,27279.0,0.146754]
[1693466780665,0.006,27280.0,27279.0,0.146754]
[1693466781202,0.006,27280.0,27279.0,0.879918]
[1693466781404,0.006,27280.0,27279.0,2.346246]
[1693466782200,0.003,27280.0,27279.0,2.346246]
[1693466782604,0.21972613,27283.0,27279.0,2.346246]
[1693466782807,0.08789034,27283.0,27279.0,2.346246]
[1693466782947,0.08789034,27283.0,27279.0,2.355246]
[1693466783605,0.08789034,27283.0,27279.0,2.346246]
[1693466784011,0.003,27280.0,27279.0,2.348246]
[1693466784376,0.003,27280.0,27279.0,3.08141]
[1693466784573,0.09189034,27283.0,27279.0,3.08141]
[1693466784981,0.09589034,27283.0,27279.0,3.08341]
[1693466785224,0.008,27283.0,27279.0,3.08341]
[1693466785378,0.004,27283.0,27279.0,3.08141]
[1693466786027,0.004,27283.0,27279.0,3.09041]
[1693466786230,0.004,27283.0,27279.0,3.08141]
[1693466786615,0.008,27283.0,27279.0,3.08341]
[1693466788057,0.004,27283.0,27279.0,3.08141]
[1693466788281,0.008,27283.0,27279.0,3.08341]
[1693466788483,0.004,27283.0,27279.0,3.08141]
[1693466788722,0.008,27283.0,27279.0,3.08141]
[1693466788927,0.004,27283.0,27279.0,3.07941]
[1693466789124,0.008,27283.0,27279.0,3.07941]
[1693466795733,0.09589034,27283.0,27279.0,3.07941]
[1693466800190,0.09589034,27283.0,27279.0,3.48552322]
[1693466800388,0.09589034,27283.0,27281.0,2.93244]
[1693466800389,0.008,27283.0,27281.0,2.93244]
[1693466800596,0.008,27283.0,27281.0,3.37411911]
[1693466801412,0.21972613,27284.0,27281.0,3.37411911]
[1693466801613,0.004,27283.0,27281.0,3.37411911]
[1693466801815,0.004,27283.0,27281.0,3.38311911]
[1693466802056,0.21972613,27284.0,27281.0,3.38311911]
[1693466802375,0.21972613,27284.0,27281.0,3.39211911]
[1693466802584,0.08789034,27283.0,27281.0,3.39211911]
[1693466803618,0.08789034,27283.0,27281.0,3.38311911]
[1693466804040,0.08789034,27283.0,27281.0,3.37411911]
[1693466804792,0.08789034,27283.0,27281.0,3.38311911]
[1693466805099,0.08789034,27283.0,27281.0,3.39211911]
[1693466806512,0.08789034,27283.0,27281.0,3.31651911]
[1693466809668,0.21972613,27283.0,27281.0,3.31651911]
[1693466813707,0.08789034,27283.0,27281.0,3.31651911]
[1693466826459,0.21972613,27283.0,27281.0,3.31651911]
[1693466826725,0.08789034,27282.0,27281.0,3.31651911]
[1693466826925,0.08789034,27282.0,27281.0,3.61651911]
[1693466827482,0.17595114,27284.0,27281.0,3.61651911]
[1693466827483,0.06267727,27284.0,27281.0,3.61651911]
[1693466827657,0.06267727,27284.0,27281.0,3.60751911]
[1693466828062,0.06267727,27284.0,27281.0,3.62851911]
[1693466828264,0.06267727,27284.0,27281.0,3.60751911]
[1693466828869,0.06267727,27284.0,27281.0,3.59851911]
[1693466829068,0.06267727,27284.0,27281.0,3.61951911]
[1693466829520,0.06267727,27284.0,27281.0,3.59851911]
[1693466832653,0.2826162,27284.0,27281.0,3.59851911]
[1693466833579,0.4268894,27284.0,27281.0,3.59851911]
[1693466833808,0.2826162,27284.0,27281.0,3.59851911]
[1693466837425,0.08800363,27282.0,27281.0,3.59851911]
[1693466838431,0.08800363,27282.0,27281.0,3.61951911]
[1693466838876,0.08800363,27282.0,27281.0,3.64051911]
[1693466844192,0.08802178,27282.0,27281.0,3.64051911]
[1693466849655,0.13203268,27283.0,27281.0,3.64051911]
[1693466849656,0.08802178,27283.0,27281.0,3.64051911]
[1693466850371,0.08802178,27283.0,27281.0,3.61951911]
[1693466850775,0.08802178,27283.0,27281.0,3.62751911]
[1693466850976,0.08802178,27283.0,27281.0,3.60651911]
[1693466851343,0.08802178,27283.0,27281.0,3.61451911]
[1693466855407,0.22005446,27283.0,27281.0,3.61451911]
[1693466856180,0.22005446,27283.0,27281.0,3.64453237]
[1693466857203,0.22005446,27283.0,27281.0,3.72013237]
[1693466861559,0.08802178,27283.0,27281.0,3.72013237]
[1693466862102,0.37920713,27285.0,27284.0,0.14]
[1693466862317,0.17598994,27288.0,27287.0,0.04]
[1693466862555,0.17598994,27291.0,27288.0,0.732922]
[1693466862773,0.17598994,27291.0,27289.0,0.40611322]
[1693466862949,0.17598994,27291.0,27290.0,1.465738]
[1693466863152,0.17598994,27291.0,27290.0,2.931476]
[1693466863357,0.314991,27292.0,27290.0,2.931476]
[1693466863552,0.17598994,27292.0,27291.0,2.274126]
[1693466863807,0.31498882,27292.0,27291.0,2.274126]
[1693466865403,0.17598994,27292.0,27291.0,2.274126]
[1693466865604,0.17598994,27292.0,27291.0,2.282126]
[1693466865983,0.17598994,27292.0,27291.0,2.290126]
[1693466866783,0.17598994,27292.0,27291.0,2.4368]
[1693466867393,0.17598994,27292.0,27291.0,2.3612]
[1693466869474,0.39554378,27293.0,27291.0,2.3612]
[1693466870457,0.17598994,27293.0,27291.0,2.3452]
[1693466870879,0.30047766,27293.0,27291.0,2.3452]
[1693466871084,0.13170305,27292.0,27291.0,2.3452]
[1693466872247,0.21949626,27292.0,27291.0,2.3452]
[1693466872451,0.21949626,27292.0,27291.0,2.3532]
[1693466872809,0.08779321,27292.0,27291.0,2.3532]
[1693466873365,0.08779321,27292.0,27291.0,2.3612]
[1693466878224,0.08779321,27293.0,27292.0,0.04]
[1693466878405,0.08779321,27294.0,27293.0,2.198364]
[1693466878645,0.08779321,27294.0,27293.0,2.573964]
[1693466878818,0.08779321,27294.0,27293.0,3.306752]
[1693466879192,0.08779321,27294.0,27293.0,3.67283111]
[1693466879408,0.21949626,27295.0,27293.0,3.67283111]
[1693466879622,0.08779321,27295.0,27294.0,0.44167911]
[1693466879908,0.08779321,27295.0,27294.0,3.37272311]
[1693466880157,0.08779321,27297.0,27294.0,3.71272311]
[1693466880409,0.08823871,27298.0,27296.0,0.0756]
[1693466880579,0.08823871,27298.0,27297.0,3.37240311]
[1693466882106,0.0004455,27298.0,27297.0,3.37240311]
[1693466882534,0.0004455,27298.0,27297.0,3.39340311]
[1693466882917,0.0004455,27298.0,27297.0,3.41440311]
[1693466887234,0.0004455,27298.0,27297.0,3.39340311]
[1693466887461,0.0004455,27298.0,27297.0,3.40740311]
[1693466887938,0.0004455,27298.0,27297.0,3.42840311]
[1693466888139,0.0004455,27298.0,27297.0,3.40740311]
[1693466888583,0.0004455,27298.0,27297.0,3.44140311]
[1693466890336,0.0004455,27298.0,27297.0,0.069]
[1693466890337,0.31844817,27298.0,27297.0,0.069]
[1693466890951,0.31844817,27298.0,27297.0,0.801681]
[1693466891441,0.0004455,27298.0,27297.0,0.801681]
[1693466892654,0.0004455,27298.0,27297.0,1.534362]
[1693466905460,0.08823871,27298.0,27297.0,2.267043]
[1693466907383,0.13214855,27298.0,27297.0,2.267043]
[1693466911579,0.44165294,27298.0,27297.0,2.267043]
[1693466911791,0.265663,27298.0,27297.0,2.267043]
[1693466912026,0.13214855,27298.0,27297.0,2.267043]
[1693466912260,0.2656738,27298.0,27297.0,2.267043]
[1693466913345,0.2656738,27298.0,27297.0,2.999724]
[1693466913542,0.44166374,27298.0,27297.0,2.999724]
[1693466914302,0.2656738,27298.0,27297.0,2.999724]
[1693466916329,0.44166374,27298.0,27297.0,2.999724]
[1693466916958,0.44166374,27298.0,27297.0,2.99380967]
[1693466917372,0.42320884,27298.0,27297.0,2.99380967]
[1693466917572,0.42320557,27298.0,27297.0,2.99380967]
[1693466919174,0.64275941,27298.0,27297.0,2.99380967]
[1693466919374,0.46676947,27298.0,27297.0,2.99380967]
[1693466919580,0.42348279,27298.0,27297.0,2.99380967]
[1693466920499,0.64303663,27298.0,27297.0,2.99380967]
[1693466921312,0.46731571,27298.0,27297.0,2.99380967]
[1693466921675,0.46734463,27298.0,27297.0,2.99380967]
[1693466923338,0.33382018,27298.0,27297.0,2.99380967]
[1693466923550,0.24777114,27298.0,27297.0,2.99380967]
[1693466923723,0.11426634,27298.0,27297.0,2.99380967]
[1693466935579,0.11426634,27298.0,27297.0,4.16816978]
[1693466937008,0.11426634,27298.0,27297.0,4.13416978]
[1693466937224,0.11426634,27298.0,27297.0,4.17116978]
[1693466937660,0.11426634,27298.0,27297.0,4.14208411]
[1693466937793,0.22035362,27298.0,27297.0,4.46208411]
[1693466938002,0.39627899,27298.0,27297.0,4.49508411]
[1693466938316,0.39628164,27298.0,27297.0,4.46208411]
[1693466938661,0.27632936,27298.0,27297.0,4.49908411]
[1693466940251,0.27632936,27298.0,27297.0,4.47908411]
[1693466940950,0.27632936,27298.0,27297.0,4.49908411]
[1693466941120,0.17637267,27298.0,27297.0,4.49908411]
[1693466941881,0.30828964,27298.0,27297.0,4.49908411]
[1693466943927,0.13236247,27298.0,27297.0,5.21908411]
[1693466944138,0.08837923,27298.0,27297.0,5.21908411]
[1693466944289,0.0004455,27298.0,27297.0,5.21908411]
[1693466948753,0.21990897,27303.0,27302.0,0.04]
[1693466948754,0.08793373,27303.0,27302.0,0.04]
[1693466948954,0.2198507,27304.0,27303.0,0.04]
[1693466949129,0.2198507,27304.0,27303.0,2.28675322]
[1693466949435,0.08793373,27304.0,27303.0,2.97923911]
[1693466949671,0.08793373,27304.0,27303.0,3.23008]
[1693466949838,0.08793373,27304.0,27303.0,2.19756]
[1693466949839,0.31940955,27304.0,27303.0,2.19756]
[1693466950036,0.31940955,27304.0,27303.0,1.46504]
[1693466950357,0.3955402,27304.0,27303.0,2.344174]
[1693466950567,0.13171772,27304.0,27303.0,2.344174]
[1693466950935,0.13171772,27304.0,27303.0,3.076694]
[1693466951143,0.13171544,27304.0,27303.0,3.113694]
[1693466951340,0.21950874,27304.0,27303.0,3.226294]
[1693466951540,0.21950874,27304.0,27303.0,3.189294]
[1693466952067,0.13171544,27304.0,27303.0,3.226294]
[1693466952474,0.21949711,27304.0,27303.0,3.226294]
[1693466953736,0.08778167,27304.0,27303.0,3.226294]
[1693466957424,0.13171544,27305.0,27303.0,3.226294]
[1693466957425,0.21949711,27305.0,27303.0,3.226294]
[1693466958159,0.21949711,27305.0,27303.0,3.189294]
[1693466958363,0.08778167,27305.0,27303.0,3.189294]
[1693466958972,0.08778167,27305.0,27303.0,3.226294]
[1693466962239,0.08778167,27305.0,27304.0,0.48167911]
[1693466962621,0.0209,27306.0,27305.0,0.16]
[1693466962817,0.15261544,27312.0,27311.0,0.02]
[1693466962818,0.24039711,27312.0,27311.0,0.02]
[1693466962998,0.24039711,27312.0,27311.0,1.89072322]
[1693466962999,0.10868167,27312.0,27311.0,1.89072322]
[1693466963218,0.10868167,27312.0,27311.0,3.67533322]
[1693466963372,0.0209,27312.0,27311.0,4.36760411]
[1693466964396,0.0209,27312.0,27311.0,4.42460411]
[1693466964602,0.0209,27312.0,27311.0,4.40460411]
[1693466964805,0.0209,27312.0,27311.0,4.44320411]
[1693466965056,0.0209,27312.0,27311.0,3.59529911]
[1693466965315,0.0209,27312.0,27311.0,3.65229911]
[1693466966161,0.0209,27312.0,27311.0,3.68929911]
[1693466966577,0.0209,27312.0,27311.0,3.65229911]
[1693466967070,0.0209,27312.0,27311.0,3.68929911]
[1693466982827,0.0209,27312.0,27311.0,3.76489911]
[1693466987220,0.0209,27312.0,27311.0,3.39882]
[1693466997362,0.1537881,27312.0,27311.0,3.39882]
[1693467001411,0.1537881,27312.0,27311.0,3.76489911]
[1693467008295,0.17497985,27313.0,27311.0,3.76489911]
[1693467008622,0.17497985,27313.0,27312.0,1.840143]
[1693467008819,0.29425974,27313.0,27312.0,1.840143]
[1693467009455,0.29425974,27313.0,27312.0,2.572421]
[1693467009948,0.29425974,27313.0,27312.0,2.609421]
[1693467010451,0.29425974,27313.0,27312.0,2.755983]
[1693467011918,0.29425974,27313.0,27312.0,2.792983]
[1693467012323,0.51298456,27313.0,27312.0,2.792983]
[1693467012538,0.29425974,27313.0,27312.0,2.792983]
[1693467013348,0.51298456,27313.0,27312.0,2.792983]
[1693467013714,0.29425974,27313.0,27312.0,2.792983]
[1693467014121,0.51298456,27313.0,27312.0,2.792983]
[1693467014657,0.33800471,27313.0,27312.0,2.792983]
[1693467016868,0.33800471,27313.0,27312.0,1.25284]
[1693467017270,0.11927989,27313.0,27312.0,1.985118]
[1693467017903,0.11927989,27314.0,27312.0,1.985118]
[1693467018577,0.11927989,27314.0,27312.0,1.25284]
[1693467019094,0.11927989,27314.0,27312.0,1.985118]
[1693467019506,0.11927989,27314.0,27312.0,1.25284]
[1693467019922,0.11927989,27314.0,27312.0,1.21584]
[1693467020245,0.11927989,27314.0,27312.0,1.25284]
[1693467020246,0.39581331,27313.0,27312.0,1.25284]
[1693467020561,0.17591604,27313.0,27312.0,1.948118]
[1693467020785,0.17591604,27313.0,27312.0,1.985118]
[1693467021165,0.17591604,27313.0,27312.0,1.948118]
[1693467021371,0.17591604,27313.0,27312.0,1.985118]
[1693467021569,0.17591604,27313.0,27312.0,1.948118]
[1693467021970,0.17591604,27313.0,27312.0,1.985118]
[1693467022583,0.17591604,27313.0,27312.0,2.717396]
[1693467024073,0.21981949,27313.0,27312.0,2.717396]
[1693467024278,0.13189478,27313.0,27312.0,1.985118]
[1693467024515,0.08792498,27313.0,27312.0,1.985118]
[1693467025070,0.08792498,27313.0,27312.0,2.717396]
[1693467025832,0.21981976,27313.0,27312.0,1.985118]
[1693467031965,0.08792498,27313.0,27312.0,1.985118]
[1693467044348,0.08792498,27313.0,27312.0,0.520562]
[1693467045299,1.28239357,27313.0,27312.0,0.220562]
[1693467045451,1.15049879,27313.0,27312.0,0.074]
[1693467046320,0.17591604,27313.0,27312.0,0.037]
[1693467046531,0.17591604,27313.0,27311.0,0.146587]
[1693467046731,0.17591604,27313.0,27312.0,0.074]
[1693467046732,0.30773733,27313.0,27312.0,0.074]
[1693467046882,0.17591604,27313.0,27312.0,0.074]
[1693467047091,0.30773779,27313.0,27311.0,0.146587]
[1693467047292,0.21970271,27312.0,27311.0,0.146587]
[1693467047662,0.13182175,27312.0,27311.0,0.146587]
[1693467047872,0.41305736,27312.0,27311.0,0.146587]
[1693467048261,0.41305736,27312.0,27311.0,0.183587]
[1693467049211,0.41305736,27312.0,27311.0,0.220587]
[1693467049395,0.41305736,27312.0,27311.0,0.183587]
[1693467049913,0.41305736,27312.0,27311.0,0.220587]
[1693467053760,0.5889734,27312.0,27311.0,0.220587]
[1693467055743,0.45715165,27312.0,27311.0,0.220587]
[1693467056967,0.41307504,27312.0,27311.0,0.220587]
[1693467072519,0.58899108,27312.0,27311.0,0.220587]
[1693467072719,0.41307504,27312.0,27311.0,0.220587]
[1693467075355,0.13183943,27312.0,27311.0,1.685197]
[1693467075559,0.13183943,27312.0,27311.0,2.417502]
[1693467075766,0.13183943,27312.0,27311.0,3.225407]
[1693467083506,0.13183943,27312.0,27311.0,2.493102]
[1693467086584,0.30775547,27312.0,27311.0,2.493102]
[1693467086782,0.13183943,27312.0,27311.0,2.493102]
[1693467094380,0.13183943,27312.0,27311.0,0.220587]
[1693467094381,0.45750808,27312.0,27311.0,0.220587]
[1693467094587,0.67740535,27312.0,27311.0,0.220587]
[1693467095037,0.39581331,27312.0,27311.0,0.220587]
[1693467095299,1.7594004,27312.0,27311.0,0.074]
[1693467095532,2.85775751,27312.0,27311.0,0.074]
[1693467095744,3.12022729,27312.0,27311.0,0.074]
[1693467095951,3.12022729,27312.0,27311.0,0.037]
[1693467096163,2.85775751,27312.0,27311.0,0.07]
[1693467096576,0.02,27311.0,27305.0,0.00098503]
[1693467096780,0.21981511,27308.0,27305.0,0.30098503]
[1693467096956,0.36619852,27308.0,27305.0,0.30098503]
[1693467097198,0.54158852,27308.0,27305.0,0.30098503]
[1693467097401,0.23612714,27307.0,27305.0,0.30098503]
[1693467097810,0.23612714,27307.0,27305.0,0.3]
[1693467098348,0.23612714,27307.0,27305.0,0.337]
[1693467098955,0.23612714,27307.0,27305.0,1.106464]
[1693467099196,0.23612714,27307.0,27305.0,1.069464]
[1693467099622,0.23612714,27307.0,27305.0,1.985534]
[1693467102539,0.08792604,27309.0,27305.0,2.718]
[1693467103337,0.08792604,27309.0,27305.0,2.644]
[1693467103552,0.37391511,27310.0,27305.0,2.713]
[1693467103745,0.08792604,27309.0,27305.0,2.75303411]
[1693467103951,0.08792604,27309.0,27305.0,2.713]
[1693467104371,0.08792604,27309.0,27305.0,2.677]
[1693467104775,0.08792604,27309.0,27305.0,2.7]
[1693467105005,0.27307848,27308.0,27305.0,2.7]